Cogmind - Beta 14 *** ADVENTURER MODE // 2024.10.26 @ 14:02:56 Player: Metroyed Result: Destroyed by Y-45 Defender with Heavy Assault Rifle Performance ------------- Evolutions (1) 500 Regions Visited (3) 600 Robots Destroyed (29) 145 Value Destroyed (856) 856 Prototype IDs (2) 40 Alien Tech Used (0) 0 Bonus (0) 0 TOTAL SCORE: 2141 Bonus ------- None Cogmind --------- Core Integrity 0/400 Matter 265/300 Energy 265/265 System Corruption 0% Temperature Cool (9) Movement Walking (190) Ox1 Location -9/Materials Parts ------- > --- POWER (1) -------- Improved Ion Engine > --- PROPULSION (3) --- Aluminum Leg Aluminum Leg Aluminum Leg > --- UTILITY (3) ------ Large Storage Unit Structural Scanner Hardened Light Armor Plating > --- WEAPON (2) ------- Beam Rifle Light Assault Rifle > --- INVENTORY (15) --- Ion Engine Melee Analysis Suite Utility Shielding Shotgun Shotgun Welding Torch Welding Torch Peak State ------------ > --- POWER ------------ Improved Ion Engine > --- PROPULSION ------- Aluminum Leg Aluminum Leg Aluminum Leg > --- UTILITY ---------- Large Storage Unit Weight Redist. System Structural Scanner > --- WEAPON ----------- Shotgun Shotgun > --- INVENTORY -------- Ion Engine Melee Analysis Suite Utility Shielding Beam Rifle Light Assault Rifle Welding Torch Welding Torch [Rating: 14] Favorites ----------- Power Ion Engine Engine Ion Engine Power Core Light Nuclear Core Propulsion Wheel Leg Aluminum Leg Wheel Wheel Hover Unit Hover Unit Flight Unit Flight Unit Utility Signal Interpreter Device Structural Scanner Storage Large Storage Unit Processor Signal Interpreter Protection Utility Shielding Weapon Light Assault Rifle Energy Gun Medium Laser Energy Cannon Beam Cannon Ballistic Gun Light Assault Rifle Special Weapon Mining Laser Build | -11 -10 -10 -9 ------- Run | Yrd Mat Min Mat Slots Evolved 2 | . . . 2 Power . | . . . . Propulsion 1 | . . . 1 Utility 1 | . . . 1 Weapon . | . . . . Parts Attached 53 | 5 21 . 27 Power 4 | 1 2 . 1 Engine 3 | 1 1 . 1 Core 1 | . 1 . . Reactor . | . . . . Propulsion 12 | 2 6 . 4 Treads . | . . . . Leg 3 | . . . 3 Wheel 3 | 2 1 . . Hover 3 | . 3 . . Flight 3 | . 2 . 1 Utility 13 | . 7 . 6 Device 7 | . 4 . 3 Storage 2 | . 1 . 1 Processor 1 | . 1 . . Hackware . | . . . . Protection 3 | . 1 . 2 Artifact . | . . . . Weapon 24 | 2 6 . 16 Energy Gun 5 | 2 1 . 2 Energy Cannon 2 | . 2 . . Ballistic Gun 11 | . 3 . 8 Ballistic Cannon . | . . . . Launcher . | . . . . Special Weapon 6 | . . . 6 Impact Weapon . | . . . . Slashing Weapon . | . . . . Piercing Weapon . | . . . . Special Melee Weapon . | . . . . Unidentified Prototypes . | . . . . Corrupted Parts 1 | . 1 . . System Corruption 3 | . 3 . . Parts Lost 8 | . . . 8 Power 1 | . . . 1 Propulsion 3 | . . . 3 Utility 1 | . . . 1 Weapon 3 | . . . 3 Highest Loss Streak 7 | . . . 7 To Critical Strikes . | . . . . Average Slot Usage (%) 92 | . 91 100 89 Engine 8 | . 7 14 10 Core 4 | . 6 . . Leg 3 | . . . 15 Wheel 8 | . 12 . . Hover 7 | . 11 . . Flight 7 | . 4 28 9 Device 9 | . 7 14 13 Storage 2 | . 2 . 4 Processor 7 | . 6 14 6 Protection 4 | . 3 . 7 Energy Gun 9 | . 11 . 4 Energy Cannon 4 | . 7 . . Ballistic Gun 11 | . 8 28 14 Peak Build Rating 14 | 5 11 7 14 Average Rating 7 | 4 7 7 10 On Entrance 4 | . 5 7 7 Naked Turns . | . . . . Heaviest Build 37 | 7 32 8 37 Greatest Support 36 | 20 20 8 36 Greatest Overweight (x) 2 | . 2 . 1 Average Overweight (x) . | . . . . Largest Inventory Capacity 15 | 5 15 5 15 Average Capacity 6 | 5 6 5 9 Most Carried 15 | 3 15 5 8 Average Carried 4 | 1 4 5 4 Final Capacity 15 | 5 5 5 15 Final Carried 7 | 2 5 5 7 Class Distribution -------------------- 70% | Mutant 29% | Scavenger-Mutant Dominant Class ---------------- Mutant | -10/Materials Mutant | -10/Mines Scavenger-Mutant | -9/Materials Resources | -11 -10 -10 -9 ----------- Run | Yrd Mat Min Mat Matter Collected 785 | 250 270 . 265 Remotely . | . . . . Salvage Created 1022 | 33 724 . 265 Parts 64 | 2 48 . 14 Haulers Intercepted . | . . . . Recyclers Shooed . | . . . . Parts Field Recycled . | . . . . Retrieved Matter . | . . . . Parts Self-Destructed . | . . . . Prevented . | . . . . Kills | -11 -10 -10 -9 ------- Run | Yrd Mat Min Mat Combat Hostiles Destroyed 27 | 1 20 . 6 Guns 16 | 1 9 . 6 Cannons 11 | . 11 . . Classes Destroyed 6 | 1 3 . 2 Builder 1 | . 1 . . Watcher 1 | . 1 . . Swarmer 6 | . 6 . . Grunt 18 | 1 14 . 3 Duelist 1 | . . . 1 Sentry 2 | . . . 2 Best Kill Streak 5 | 1 5 . 3 Combat Bots Only 5 | 1 5 . 3 Max Kills in Single Turn 2 | 1 2 . 1 Gunslinging . | . . . . Exploded . | . . . . Melee . | . . . . Uniques/NPCs Destroyed . | . . . . Combat | -11 -10 -10 -9 -------- Run | Yrd Mat Min Mat Hostile Shots Fired 160 | 1 62 2 95 Missed 38 | 1 17 1 19 Damage Taken 1318 | . 339 33 946 Core 540 | . 114 22 404 Absorbed by Shields . | . . . . Redirected to Shielding 5 | . . . 5 Ignored by Resistances 390 | . 115 9 266 Regen/Repaired (Parts) 11 | . 11 . . Core Remaining (%) 72 | 100 . 45 . Volleys Fired 85 | 2 44 . 39 Largest 2 | 2 2 . 2 Hottest 125 | 90 125 . 100 Shots Fired 159 | 4 88 . 67 Gun 129 | 4 64 . 61 Cannon 24 | . 24 . . Launcher . | . . . . Special 6 | . . . 6 Kinetic 70 | . 24 . 46 Thermal 76 | 2 53 . 21 Explosive . | . . . . Electromagnetic 13 | 2 11 . . Robot Hit Streak 36 | 1 22 . 36 Robot Miss Streak 2 | . 2 . 1 Penetration Max . | . . . . Secondary Targets 4 | . 2 . 2 Max Gunslinging Chain 1 | . 1 . 1 Shots Hit Robots 114 | 1 65 . 48 Core Hits 51 | 1 34 . 16 Critical Kills . | . . . . Critical Parts Destroyed . | . . . . Critical Strikes . | . . . . Melee Attacks . | . . . . Impact . | . . . . Slashing . | . . . . Piercing . | . . . . Sneak Attacks . | . . . . Combat Hostiles . | . . . . Follow-up Attacks . | . . . . Damage Inflicted 1356 | 15 874 . 467 Guns 1009 | 15 527 . 467 Cannons 347 | . 347 . . Explosions . | . . . . Melee . | . . . . Ramming . | . . . . Kinetic 386 | . 121 . 265 Thermal 825 | . 623 . 202 Explosive . | . . . . Electromagnetic 145 | 15 130 . . Impact . | . . . . Slashing . | . . . . Piercing . | . . . . Highest Corruption 4 | . 4 4 . Average Corruption 3 | . 3 4 . Corruption Purged . | . . . . Corruption Blocked . | . . . . Effects 24 | . 23 1 . Message Errors 6 | . 5 1 . Matter Fused 6 | . 6 . . Heat Flow Errors 3 | . 3 . . Energy Discharges 2 | . 2 . . Data Loss (minor) 4 | . 4 . . Misfires 1 | . 1 . . Alerts 1 | . 1 . . Weapon Failures 1 | . 1 . . Overload Shots . | . . . . Overflow Damage . | . . . . Projectiles . | . . . . Explosions . | . . . . Melee . | . . . . Knockbacks . | . . . . Impact . | . . . . Kinetic . | . . . . Secondary . | . . . . Self-Inflicted Damage . | . . . . Shots . | . . . . Rammed . | . . . . Targets Rammed . | . . . . Kicked . | . . . . Crushed . | . . . . Highest Temperature 274 | 30 274 . 210 Average Temperature 73 | 17 82 . 59 Received Heat Transfer 531 | . 162 . 369 Siege Activations . | . . . . Robots Corrupted . | . . . . Combat Hostiles . | . . . . Parts Fried . | . . . . Impact Corruptions . | . . . . Robots Melted . | . . . . Combat Hostiles . | . . . . Parts Melted 4 | . 4 . . Heat Transferred 1998 | . 1480 . 518 Parts Sabotaged . | . . . . Parts Stolen . | . . . . Parts Stripped . | . . . . Power Chain Reactions . | . . . . Alert | -11 -10 -10 -9 ------- Run | Yrd Mat Min Mat Peak Influence 365 | 20 365 127 257 Initial 97 | . 11 97 41 Average 146 | 13 182 97 148 Maximum Alert Level 1 | . 1 . 1 Low Security (%) 65 | 100 45 100 86 Level 1 34 | . 54 . 13 Level 2 . | . . . . Level 3 . | . . . . Level 4 . | . . . . Level 5 . | . . . . High Security . | . . . . Max Security . | . . . . Squads Dispatched 8 | . 6 . 2 Investigation 7 | . 6 . 1 Extermination . | . . . . Reinforcement 1 | . . . 1 Assault . | . . . . Garrison . | . . . . Intercept . | . . . . Searches Triggered . | . . . . Construction Impeded . | . . . . Haulers Reinforced . | . . . . Active Scanning Responses . | . . . . Cargo Convoy Interrupts . | . . . . Stealth | -11 -10 -10 -9 --------- Run | Yrd Mat Min Mat Distress Signals 2 | . 1 . 1 Communications Jammed . | . . . . Distress Signals . | . . . . Times Spotted 42 | 1 26 2 13 Peak Tracking Total 6 | 1 6 2 6 Tactical Retreats 6 | . 3 1 2 Traps | -11 -10 -10 -9 ------- Run | Yrd Mat Min Mat Traps Triggered 4 | . 1 . 3 Indirectly . | . . . . Trap Hack Attempts . | . . . . Triggered . | . . . . Disarmed . | . . . . Reprogrammed . | . . . . Reused . | . . . . Traps Extracted . | . . . . Installed . | . . . . Triggered . | . . . . Machines | -11 -10 -10 -9 ---------- Run | Yrd Mat Min Mat Machines Disabled . | . . . . Max in Single Turn . | . . . . Machines Repaired . | . . . . Machines Dismantled . | . . . . Machines Sabotaged . | . . . . Overloaded Fab Kills . | . . . . Hacking | -11 -10 -10 -9 --------- Run | Yrd Mat Min Mat Machines Accessed 12 | . 11 . 1 Terminals 8 | . 8 . . Fabricators . | . . . . Repair Stations 1 | . 1 . . Recycling Units 2 | . 2 . . Scanalyzers 1 | . . . 1 Garrison Access . | . . . . Total Hacks 49 | . 39 . 10 Successful 37 | . 27 . 10 Failed 12 | . 12 . . Catastrophic 1 | . 1 . . Database Lockouts . | . . . . Manual 9 | . 8 . 1 Terminals 28 | . 28 . . Fabricators . | . . . . Repair Stations 4 | . 4 . . Recycling Units 7 | . 7 . . Scanalyzers 10 | . . . 10 Garrison Access . | . . . . Terminal Hacks 18 | . 18 . . Record 9 | . 9 . . Prototype ID Bank 1 | . 1 . . Branch Access Points 1 | . 1 . . Locate Traps 1 | . 1 . . Dispatch Records 3 | . 3 . . Maintenance Status 1 | . 1 . . Zone Layout 2 | . 2 . . Fabricator Hacks . | . . . . Repair Station Hacks 3 | . 3 . . Scan Component 2 | . 2 . . Repair 1 | . 1 . . Recycling Unit Hacks 4 | . 4 . . Report Inventory 2 | . 2 . . Retrieve Components 2 | . 2 . . Scanalyzer 10 | . . . 10 Insert Component 5 | . . . 5 Analyze 5 | . . . 5 Garrison Access Hacks . | . . . . Unauthorized Hacks 1 | . 1 . . Terminals . | . . . . Fabricators . | . . . . Repair Stations . | . . . . Recycling Units 1 | . 1 . . Monitor 1 | . 1 . . Scanalyzers . | . . . . Garrison Access . | . . . . Data Cores Recovered . | . . . . Used . | . . . . Hacking Detections 12 | . 11 . 1 Full Trace Events 7 | . 6 . 1 Feedback Events 1 | . 1 . . Corruption 1 | . 1 . . Feedback Blocked . | . . . . Robot Schematics Acquired . | . . . . Robots Built . | . . . . Authchips . | . . . . Time . | . . . . Total Robot Build Rating . | . . . . Part Schematics Acquired 5 | . . . 5 Parts Built . | . . . . Authchips . | . . . . Time . | . . . . Total Part Build Rating . | . . . . Parts Repaired 1 | . 1 . . Time 26 | . 26 . . Parts Recycled . | . . . . Recycled Matter . | . . . . Retrieved Matter . | . . . . Retrieved Components 20 | . 20 . . Parts Scanalyzed 5 | . . . 5 Part Schematics Acquired 5 | . . . 5 Parts Damaged . | . . . . Bothacking | -11 -10 -10 -9 ------------ Run | Yrd Mat Min Mat Used RIF Installer . | . . . . Robots Hacked . | . . . . Non-combat . | . . . . Combat . | . . . . Robot Hacks Applied . | . . . . Relay Couplers Released . | . . . . Fabnet Peak Effective % . | . . . . Robots Rewired . | . . . . Allies Hacked . | . . . . Hacks Repelled . | . . . . Allies | -11 -10 -10 -9 -------- Run | Yrd Mat Min Mat Total Allies . | . . . . Largest Group . | . . . . Highest-Rated Group . | . . . . Highest-Rated Ally . | . . . . Total Orders . | . . . . Ally Attacks . | . . . . Total Damage . | . . . . Kills . | . . . . Allies Corrupted . | . . . . Allies Melted . | . . . . Intel | -11 -10 -10 -9 ------- Run | Yrd Mat Min Mat Robot Analysis Total . | . . . . Derelict Logs Recovered 2 | . . 2 . Drone Launches . | . . . . Drone Recoveries . | . . . . Exploration | -11 -10 -10 -9 ------------- Run | Yrd Mat Min Mat Turns Passed 1841 | 241 1073 161 366 Spaces Moved 2025 | 235 1053 415 322 Core 45 | 21 . . 24 Treads . | . . . . Legs 98 | . . . 98 Wheels 649 | 214 435 . . Hover 279 | . 279 . . Flight 954 | . 339 415 200 Fastest Speed 34 | 50 37 37 34 Average Speed 61 | 77 65 37 65 Slowest Speed 190 | 80 176 37 190 Overloaded Moves . | . . . . Propulsion Burnouts . | . . . . Robots Hopped 3 | . . 3 . Cave-ins Triggered . | . . . . Exploration Rate (%) 42 | 11 93 53 14 Regions Visited 3 Branch Regions 1 Pre-discovered Areas 1 | . . 1 . Known Exits Taken 2 | . 1 1 . Unknown Exits Taken 1 | 1 . . . Scrap Searched . | . . . . Spaces Dug 4 | . . . 4 Terrain Destroyed 4 | . . . 4 Melee . | . . . . Projectile 4 | . . . 4 AOE . | . . . . Terrain Rammed . | . . . . Walls Destroyed . | . . . . Machines Disabled . | . . . . Actions | -11 -10 -10 -9 --------- Run | Yrd Mat Min Mat Total 2463 | 290 1356 418 399 Wait 235 | 42 186 7 . Move 2016 | 234 1052 408 322 Hop 3 | . . 3 . Pick Up 42 | 7 26 . 9 Fast Attach 10 | . 5 . 5 Attach 17 | 5 5 . 7 Detach 2 | . 2 . . Swap 26 | . 11 . 15 Drop 27 | . 25 . 2 Fire 85 | 2 44 . 39 Melee . | . . . . Ram . | . . . . Kick . | . . . . Crush . | . . . . Escape Stasis . | . . . . Rewire . | . . . . Trap . | . . . . Miscellaneous . | . . . . Route ------- -11/Scrapyard -10/Materials (discovered 3 exits: *Mat x2 / *Min) -10/Mines -9/Materials History --------- Turn | Location | Event 2 | -11/Scrapyard | Met Revision 17 77 | -11/Scrapyard | Discovered new exit (range 8) 242 | -11/Scrapyard | Entered Materials 300 | -10/Materials | Build established: Mutant 617 | -10/Materials | Identified exit to Mines 628 | -10/Materials | Discovered new exit (range 12) 835 | -10/Materials | Build established: Scavenger-Mutant 914 | -10/Materials | Repaired Hover Unit 1167 | -10/Materials | Discovered new exit (range 15) 1174 | -10/Materials | Identified exit to Materials 1201 | -10/Materials | Build established: Mutant 1315 | -10/Materials | Entered Mines 1321 | -10/Mines | Met a Derelict bent on vengeance 1325 | -10/Mines | Learned location of Mines (-8) 1326 | -10/Mines | Learned Materials terminal intel 1330 | -10/Mines | A weapon hastily lodged in a ceiling crevice suddenly fell to the ground 1330 | -10/Mines | Discovered exit to Materials (range 14) 1415 | -10/Mines | Assembled infested the area 1446 | -10/Mines | Core integrity fell below 50% 1476 | -10/Mines | Entered Materials 1476 | -9/Materials | Evolved 2 slots: Propulsion x1, Utility x1 1477 | -9/Materials | Loaded intel: 12 terminal locations 1599 | -9/Materials | Core integrity fell below 50% 1625 | -9/Materials | Lost 7 parts (1p3n3w) 1803 | -9/Materials | Core integrity fell below 20% 1842 | -9/Materials | Destroyed by Y-45 Defender with Heavy Assault Rifle Last Messages --------------- 01757_ Connecting with Scanalyzer... 01757_ ALERT: Suspicious activity at Scanalyzer M001. Dispatching Investigation squad. 01763_ Acquired 32 matter. 01768_ Acquired 21 matter. 01796_ O-16 Technician distress signal alerts nearby ally. 01796_ O-16 Technician: "IFF HANDSHAKE FAILED. SECURING TERMINAL." 01797_ Triggered Shock Trap. 01797_ The floor emits a surge of raw power. 01798_ Triggered Shock Trap. 01798_ The floor emits a surge of raw power. 01799_ Triggered Shock Trap. 01799_ The floor emits a surge of raw power. 01803_ ALERT: Hostiles spotted, dispatching reinforcements to Terminal M011. 01803_ U-05 Engineer lays Concrete. 01813_ G-34 Mercenary destroyed. 01819_ Acquired 33 matter. 01827_ Weight Redist. System destroyed. 01833_ Acquired Hrd. Light Armor Plating. Map ----- +----------------------------------------------------+ | ???????????????????## ! # # # | | ?????????????######## # # # | | ?????????????############### ###+## | | ?????????????## ####### ## ## | | ?????????????## ## ## | | ?????????????## ## ## | | ?????????????## ## ## | | ?????????????## ####### ## ## | | ?????????????### ###############+## | | ???? ##### ###???## "" ## | | ????############ ######## ""S ## | | ????## # ######## "" !## | | ????## # # ## | | ????## + + ## | | ????## # # """ [ ## | | ???? # /# ^###### # """ ![ # | | ?? / # ###### # """ ## | | ? # # ######Y# ! ## | | ????## # ######/########### | | ????############ ## ######## | | ????############ ##!!] ##?????? | | ??????????????## ##! ] ##?????? | | ??????????????# #!]] ##?????? | | ??????????????? # ##?????? | | ??????????????? + b ##?????? | | ????????????? # @ Y###????? | | ?????????????## # ""T"" ##????? | | ?????????????### ## """"" ###????? | | ?????????????### #############????? | | ??????????????## # ###?????? | | ????????????????????????????????????? | | ????????????????????????????????????? | | ????????????????????????????????????? | | ????????????????????????????????????? | | ????????????????????????????????????? | | ????????????????????????????????????? | | ????????????????????????????????????? | | ????????????????????????????????????? | | ????????????????????????????????????? | | ????????????????????????????????????? | | ????????????????????????????????????? | | ????????????????????????????????????? | | ????????????????????????????????????? | | ????????????????????????????????????? | | ????????????????????????????????????? | | ????????????????????????????????????? | | ????????????????????????????????????? | | ????????????????????????????????????? | | ????????????????????????????????????? | | ????????????????????????????????????? | +----------------------------------------------------+ Best States ------------- Heat Dissipation 35 Energy Generation 14 Energy Capacity 265 Matter Stores 300 Matter Capacity 300 Sight Range 16 Terrain Scan Density 10 Additional Mass Support 6 Armor Coverage 150 Resistance: KI 20 Resistance: TH 20 Resistance: EX 20 Resistance: EM 20 Resistance: I 20 Resistance: S 20 Resistance: P 20 Utility Shielding 33 Evasion (%) 63 Offensive Hacking 10 Item Schematics ----------------- Welding Torch | -9/Materials | Scanalyzed Utility Shielding | -9/Materials | Scanalyzed Lgt. Assault Rifle | -9/Materials | Scanalyzed Ion Engine | -9/Materials | Scanalyzed Beam Rifle | -9/Materials | Scanalyzed Robot Schematics ------------------ None Fabricated ------------ Nothing Alien Tech Used ----------------- None Achievements -------------- None Challenges ------------ None Game ------ Seed NetworkSpreadCompanion Manual? 0 Play Time 01:39:35 Cumulative 10.2 hours Start 2024.10.26 @ 11:49:42 End 2024.10.26 @ 14:02:56 Sessions 4 Manual Loads 0 Difficulty Adventurer Special Mode None Game No. 2 Rogue 0 Adventurer 2 Explorer 0 Win Type - Total 0 Types 0/0/0/0/0/0/0/0/0 Lore% 3 Gallery% 8 Achievement% 9 Wizard Run 0 Options --------- Layout 0 ASCII 0 Keyboard 0 Movement Arrows Keybinds 0 Fullscreen 1 Font 18/SmallcapsGlow Map View 76x50 Zoom Use 0% Tactical HUD 1 Map Filters NONE Filters NONE Steam 1 RUN: 6c81bac9-5283-47ca-b2e0-0d050006c56c